[Event "Live Chess"]
[Site "Chess.com"]
[Date "2021.02.28"]
[Round "-"]
[White "McKay, Ruairidh"]
[Black "Keegan, James"]
[Result "1-0"]
[BlackElo "1371"]
[CurrentPosition "7Q/8/2B5/1Pn5/8/5PK1/k7/8 w - -"]
[ECO "C46"]
[ECOUrl "https://www.chess.com/openings/Three-Knights-Opening-3...Bb4"]
[EndDate "2021.02.28"]
[EndTime "12:15:50"]
[Link "https://www.chess.com/live/game/8250864609"]
[StartTime "11:33:03"]
[Termination "jennlewis won by resignation"]
[TimeControl "1500+10"]
[Timezone "UTC"]
[UTCDate "2021.02.28"]
[UTCTime "11:33:03"]
[WhiteElo "1546"]

1. e4 { [%clk 0:25:10] } 1... e5 { [%clk 0:25:10] } 2. Nf3 { [%clk 0:25:18.2] } 2... Nc6 { [%clk 0:25:18.4] } 3. Nc3 { [%clk 0:25:17.9] } 3... Bb4 { [%clk 0:25:26.7] } 4. d3 { [%clk 0:25:05] } 4... Nf6 { [%clk 0:25:32.7] } 5. Bd2 { [%clk 0:25:11.7] } 5... d6 { [%clk 0:25:39.9] } 6. a3 { [%clk 0:25:19] } 6... Ba5 { [%clk 0:25:48] } 7. b4 { [%clk 0:25:26.9] } 7... Bb6 { [%clk 0:25:56.9] } 8. Na4 { [%clk 0:25:24.7] } 8... Bg4 { [%clk 0:26:04.3] } 9. Nxb6 { [%clk 0:25:30.4] } 9... axb6 { [%clk 0:26:13.1] } 10. c3 { [%clk 0:25:27.4] } 10... O-O { [%clk 0:26:11.2] } 11. Be2 { [%clk 0:25:35.1] } 11... Re8 { [%clk 0:26:18.4] } 12. O-O { [%clk 0:25:42.5] } 12... d5 { [%clk 0:26:23.8] } 13. exd5 { [%clk 0:23:42.5] } 13... Nxd5 { [%clk 0:26:16.4] } 14. c4 { [%clk 0:23:30.2] } 14... Nf6 { [%clk 0:26:15.2] } 15. b5 { [%clk 0:23:17.7] } 15... Bxf3 { [%clk 0:25:57.5] } 16. Bxf3 { [%clk 0:22:45.9] } 16... Na5 { [%clk 0:25:45.4] } 17. Bxa5 { [%clk 0:22:30.9] } 17... bxa5 { [%clk 0:25:32.4] } 18. Bxb7 { [%clk 0:22:30.5] } 18... Rb8 { [%clk 0:25:40.4] } 19. Bc6 { [%clk 0:22:33.5] } 19... Re6 { [%clk 0:25:48.2] } 20. Qc2 { [%clk 0:18:46] } 20... Qd4 { [%clk 0:25:44.3] } 21. Rad1 { [%clk 0:18:07.4] } 21... Qh4 { [%clk 0:25:27.3] } 22. h3 { [%clk 0:13:35.4] } 22... Nh5 { [%clk 0:25:23.3] } 23. Qe2 { [%clk 0:08:01.7] } 23... Rg6 { [%clk 0:24:48.4] } 24. Kh2 { [%clk 0:06:46.8] } 24... Rxg2+ { [%clk 0:24:07.5] } 25. Bxg2 { [%clk 0:05:58.6] } 25... Nf4 { [%clk 0:24:15.5] } 26. Qf3 { [%clk 0:06:02] } 26... h5 { [%clk 0:23:52.2] } 27. Qg3 { [%clk 0:05:22.3] } 27... Qf6 { [%clk 0:23:51.4] } 28. Be4 { [%clk 0:05:15.8] } 28... Rb6 { [%clk 0:23:50.5] } 29. Rg1 { [%clk 0:05:15.4] } 29... g6 { [%clk 0:23:54.9] } 30. Rde1 { [%clk 0:05:19] } 30... h4 { [%clk 0:23:59.1] } 31. Qg4 { [%clk 0:05:19.7] } 31... Qe7 { [%clk 0:23:48.5] } 32. a4 { [%clk 0:04:35.5] } 32... f5 { [%clk 0:23:52.9] } 33. Bxf5 { [%clk 0:04:41] } 33... Qd6 { [%clk 0:23:46.3] } 34. Be4 { [%clk 0:04:43.4] } 34... Qd4 { [%clk 0:23:43.1] } 35. Qc8+ { [%clk 0:04:44.8] } 35... Kh7 { [%clk 0:23:46.3] } 36. Qxc7+ { [%clk 0:04:41.9] } 36... Kh6 { [%clk 0:23:55.2] } 37. Ref1 { [%clk 0:04:20.7] } 37... Ne2 { [%clk 0:21:54.1] } 38. Rg4 { [%clk 0:03:29.4] } 38... Rf6 { [%clk 0:21:31.9] } 39. Bg2 { [%clk 0:03:04.2] } 39... Qxd3 { [%clk 0:20:58.9] } 40. Rxh4+ { [%clk 0:03:09.4] } 40... Kg5 { [%clk 0:21:03] } 41. Rg4+ { [%clk 0:03:09.9] } 41... Kh6 { [%clk 0:21:03.7] } 42. Rh4+ { [%clk 0:03:11.1] } 42... Kg5 { [%clk 0:21:07.8] } 43. Qxe5+ { [%clk 0:02:57.4] } 43... Rf5 { [%clk 0:21:16.4] } 44. Qe7+ { [%clk 0:02:55.7] } 44... Rf6 { [%clk 0:21:24.4] } 45. Rg4+ { [%clk 0:03:04.5] } 45... Kf5 { [%clk 0:21:28.5] } 46. Qe4+ { [%clk 0:03:11.1] } 46... Qxe4 { [%clk 0:21:36.6] } 47. Bxe4+ { [%clk 0:03:18.8] } 47... Ke6 { [%clk 0:21:42.7] } 48. c5 { [%clk 0:03:27.8] } 48... Nc3 { [%clk 0:21:30.7] } 49. f3 { [%clk 0:03:25.8] } 49... Nxa4 { [%clk 0:21:36.6] } 50. Rxg6 { [%clk 0:03:27.9] } 50... Nxc5 { [%clk 0:21:39.5] } 51. Rxf6+ { [%clk 0:03:35.1] } 51... Kxf6 { [%clk 0:21:48.9] } 52. Bc6 { [%clk 0:03:43.7] } 52... a4 { [%clk 0:21:56] } 53. Ra1 { [%clk 0:03:52.7] } 53... Ke5 { [%clk 0:22:00.2] } 54. Kg3 { [%clk 0:04:01.1] } 54... Kd4 { [%clk 0:22:09.4] } 55. h4 { [%clk 0:04:07.7] } 55... Kc3 { [%clk 0:22:18.3] } 56. h5 { [%clk 0:04:16.2] } 56... Kb2 { [%clk 0:22:27.5] } 57. Rf1 { [%clk 0:04:20.3] } 57... a3 { [%clk 0:22:36.6] } 58. h6 { [%clk 0:04:26.9] } 58... a2 { [%clk 0:22:45.5] } 59. h7 { [%clk 0:04:35.2] } 59... a1=Q { [%clk 0:22:54.7] } 60. Rxa1 { [%clk 0:04:44.1] } 60... Kxa1 { [%clk 0:23:04.2] } 61. h8=Q+ { [%clk 0:04:52.5] } 61... Ka2 { [%clk 0:23:13.5] } 1-0

[Event "Live Chess"]
[Site "Chess.com"]
[Date "2021.02.28"]
[Round "-"]
[White "McGillivray, Calum"]
[Black "Campbell, Duncan A F"]
[Result "1/2-1/2"]
[BlackElo "1426"]
[CurrentPosition "5k2/8/6K1/6Nb/8/8/8/8 w - -"]
[ECO "C01"]
[ECOUrl "https://www.chess.com/openings/French-Defense-Exchange-Variation-3...exd5-4.Bf4"]
[EndDate "2021.02.28"]
[EndTime "12:24:10"]
[Link "https://www.chess.com/live/game/8249670335"]
[StartTime "11:13:28"]
[Termination "Game drawn by insufficient material"]
[TimeControl "1500+10"]
[Timezone "UTC"]
[UTCDate "2021.02.28"]
[UTCTime "11:13:28"]
[WhiteElo "1502"]

1. e4 { [%clk 0:25:10] } 1... e6 { [%clk 0:25:10] } 2. d4 { [%clk 0:25:10.7] } 2... d5 { [%clk 0:25:04.4] } 3. exd5 { [%clk 0:25:11.3] } 3... exd5 { [%clk 0:25:12] } 4. Bf4 { [%clk 0:25:01.5] } 4... Bd6 { [%clk 0:24:35.9] } 5. Bxd6 { [%clk 0:25:08.6] } 5... Qxd6 { [%clk 0:24:43.7] } 6. c3 { [%clk 0:25:17.6] } 6... Nf6 { [%clk 0:24:47.2] } 7. Bd3 { [%clk 0:24:59.8] } 7... O-O { [%clk 0:24:52.8] } 8. Nf3 { [%clk 0:24:53.8] } 8... Re8+ { [%clk 0:24:53.6] } 9. Be2 { [%clk 0:24:56.3] } 9... Bg4 { [%clk 0:24:56.9] } 10. O-O { [%clk 0:25:01.1] } 10... Nbd7 { [%clk 0:24:37.7] } 11. Nbd2 { [%clk 0:24:55.8] } 11... Nf8 { [%clk 0:24:29.1] } 12. Bd3 { [%clk 0:24:37.3] } 12... Ng6 { [%clk 0:24:19.5] } 13. Qc2 { [%clk 0:24:34.7] } 13... Nf4 { [%clk 0:23:16.8] } 14. Rfe1 { [%clk 0:23:34.8] } 14... Nxd3 { [%clk 0:21:40.1] } 15. Qxd3 { [%clk 0:23:39.6] } 15... c6 { [%clk 0:21:09.4] } 16. Rxe8+ { [%clk 0:14:28.4] } 16... Rxe8 { [%clk 0:21:11.1] } 17. Re1 { [%clk 0:14:35.9] } 17... Rxe1+ { [%clk 0:16:42.7] } 18. Nxe1 { [%clk 0:14:40.7] } 18... Qf4 { [%clk 0:16:02.3] } 19. g3 { [%clk 0:14:02.3] } 19... Qd6 { [%clk 0:15:57.7] } 20. Qe3 { [%clk 0:12:52.1] } 20... Kf8 { [%clk 0:14:31.3] } 21. f3 { [%clk 0:11:43.7] } 21... Bd7 { [%clk 0:14:06.2] } 22. Ng2 { [%clk 0:11:20.6] } 22... b6 { [%clk 0:12:59.5] } 23. b4 { [%clk 0:09:47.7] } 23... a5 { [%clk 0:10:28.7] } 24. a3 { [%clk 0:08:44] } 24... axb4 { [%clk 0:10:36.2] } 25. axb4 { [%clk 0:08:47.2] } 25... Qc7 { [%clk 0:10:42.6] } 26. Qe5 { [%clk 0:08:15.3] } 26... Qa7 { [%clk 0:09:16] } 27. Kf2 { [%clk 0:07:04.5] } 27... Qa3 { [%clk 0:05:30.9] } 28. Qb8+ { [%clk 0:05:45.7] } 28... Ke7 { [%clk 0:05:27.4] } 29. Qxb6 { [%clk 0:05:04] } 29... Qxc3 { [%clk 0:05:32.8] } 30. Qc5+ { [%clk 0:05:11.4] } 30... Qxc5 { [%clk 0:05:41.1] } 31. dxc5 { [%clk 0:04:34.3] } 31... Bc8 { [%clk 0:05:47.9] } 32. Ke3 { [%clk 0:04:39.9] } 32... Ba6 { [%clk 0:05:50.8] } 33. Kd4 { [%clk 0:04:42.8] } 33... Nd7 { [%clk 0:05:36.5] } 34. f4 { [%clk 0:04:09.2] } 34... Nf8 { [%clk 0:05:31.2] } 35. f5 { [%clk 0:03:58.1] } 35... Kf6 { [%clk 0:05:26.5] } 36. Ne3 { [%clk 0:04:01.3] } 36... Nd7 { [%clk 0:04:58.9] } 37. Nb3 { [%clk 0:03:26.8] } 37... Ne5 { [%clk 0:04:16.7] } 38. Nd2 { [%clk 0:02:55.4] } 38... Nd3 { [%clk 0:03:09.9] } 39. Nc2 { [%clk 0:01:20.2] } 39... Kxf5 { [%clk 0:03:06.5] } 40. Nb3 { [%clk 0:01:28.7] } 40... Ke6 { [%clk 0:03:00.4] } 41. Na5 { [%clk 0:01:31.7] } 41... Ne5 { [%clk 0:03:08] } 42. Ne1 { [%clk 0:01:21.3] } 42... Bb5 { [%clk 0:03:08.4] } 43. Nb7 { [%clk 0:01:22.3] } 43... Nc4 { [%clk 0:02:47.6] } 44. Nd3 { [%clk 0:01:17.3] } 44... f6 { [%clk 0:02:17.2] } 45. h4 { [%clk 0:01:15.5] } 45... Ne5 { [%clk 0:02:19.3] } 46. Nf4+ { [%clk 0:01:14.4] } 46... Kd7 { [%clk 0:02:17.3] } 47. Nd6 { [%clk 0:01:17] } 47... Bf1 { [%clk 0:01:16.3] } 48. Nh5 { [%clk 0:01:01.8] } 48... Ng6 { [%clk 0:00:31.1] } 49. Nxg7 { [%clk 0:01:04.5] } 49... Be2 { [%clk 0:00:37.7] } 50. Nge8 { [%clk 0:01:04.2] } 50... f5 { [%clk 0:00:40.8] } 51. Nf6+ { [%clk 0:01:10] } 51... Ke7 { [%clk 0:00:39.9] } 52. Nxh7 { [%clk 0:01:10.2] } 52... Bg4 { [%clk 0:00:43.3] } 53. Ng5 { [%clk 0:01:14.8] } 53... Nf8 { [%clk 0:00:50.3] } 54. b5 { [%clk 0:01:07.3] } 54... cxb5 { [%clk 0:00:57.1] } 55. Nxb5 { [%clk 0:01:14] } 55... Nd7 { [%clk 0:00:25.7] } 56. Kxd5 { [%clk 0:01:16] } 56... Nf6+ { [%clk 0:00:34] } 57. Kd4 { [%clk 0:01:21] } 57... Nh5 { [%clk 0:00:41.3] } 58. Ke5 { [%clk 0:01:11.9] } 58... Nxg3 { [%clk 0:00:47.4] } 59. c6 { [%clk 0:01:03.3] } 59... Ne2 { [%clk 0:00:41] } 60. c7 { [%clk 0:00:54.7] } 60... f4 { [%clk 0:00:48.5] } 61. Nd4 { [%clk 0:00:42] } 61... Nxd4 { [%clk 0:00:45.8] } 62. Kxd4 { [%clk 0:00:51] } 62... Kd7 { [%clk 0:00:53] } 63. Ke4 { [%clk 0:00:57] } 63... Kxc7 { [%clk 0:00:59.1] } 64. Kxf4 { [%clk 0:01:05.9] } 64... Bd1 { [%clk 0:01:04.8] } 65. Ke5 { [%clk 0:01:10.8] } 65... Kd7 { [%clk 0:01:10] } 66. Kf6 { [%clk 0:01:19.2] } 66... Ke8 { [%clk 0:01:15.8] } 67. Kg7 { [%clk 0:01:23.6] } 67... Ke7 { [%clk 0:01:23.9] } 68. Kg6 { [%clk 0:01:05.6] } 68... Kf8 { [%clk 0:01:31.1] } 69. h5 { [%clk 0:01:14.8] } 69... Bxh5+ { [%clk 0:01:37.8] } 1/2-1/2

[Event "Live Chess"]
[Site "Chess.com"]
[Date "2021.02.28"]
[Round "-"]
[White "Coates, Sam"]
[Black "Ridge, Benjamin"]
[Result "1/2-1/2"]
[BlackElo "1339"]
[CurrentPosition "r5k1/2b2ppp/4p3/r1p1P1P1/1pPpNP2/1P3KP1/P2R3R/8 w - -"]
[ECO "C07"]
[ECOUrl "https://www.chess.com/openings/French-Defense-Tarrasch-Open-Euwe-Keres-Line-4...Nc6"]
[EndDate "2021.02.28"]
[EndTime "12:11:10"]
[Link "https://www.chess.com/live/game/8249666335"]
[StartTime "11:13:12"]
[Termination "Game drawn by repetition"]
[TimeControl "1500+10"]
[Timezone "UTC"]
[UTCDate "2021.02.28"]
[UTCTime "11:13:12"]
[WhiteElo "1567"]

1. e4 { [%clk 0:25:10] } 1... e6 { [%clk 0:25:10] } 2. d4 { [%clk 0:25:05.7] } 2... d5 { [%clk 0:25:11.3] } 3. Nd2 { [%clk 0:25:12.5] } 3... c5 { [%clk 0:25:17] } 4. Ngf3 { [%clk 0:25:20] } 4... Nc6 { [%clk 0:25:14.5] } 5. Bb5 { [%clk 0:23:06.9] } 5... a6 { [%clk 0:24:56] } 6. Bxc6+ { [%clk 0:23:08.8] } 6... bxc6 { [%clk 0:25:03.5] } 7. O-O { [%clk 0:23:04.9] } 7... Qb6 { [%clk 0:24:03.4] } 8. dxc5 { [%clk 0:20:09.5] } 8... Bxc5 { [%clk 0:23:31] } 9. e5 { [%clk 0:20:02.2] } 9... Qc7 { [%clk 0:22:53.6] } 10. Nb3 { [%clk 0:19:56.8] } 10... Bb6 { [%clk 0:22:58.2] } 11. Qe2 { [%clk 0:16:27.5] } 11... a5 { [%clk 0:21:27.5] } 12. c4 { [%clk 0:16:31.1] } 12... Ba6 { [%clk 0:21:23] } 13. Nbd2 { [%clk 0:16:39.2] } 13... Ne7 { [%clk 0:19:22.3] } 14. b3 { [%clk 0:16:24] } 14... O-O { [%clk 0:16:49.1] } 15. Bb2 { [%clk 0:16:06.3] } 15... Ng6 { [%clk 0:15:48.4] } 16. g3 { [%clk 0:15:16.2] } 16... Rfd8 { [%clk 0:14:28.4] } 17. Rfe1 { [%clk 0:13:52.6] } 17... c5 { [%clk 0:13:56.8] } 18. Rad1 { [%clk 0:11:36.9] } 18... Qb8 { [%clk 0:12:16.1] } 19. Ba3 { [%clk 0:09:42.4] } 19... Qc7 { [%clk 0:10:49.7] } 20. Qe3 { [%clk 0:08:43.4] } 20... d4 { [%clk 0:10:55.5] } 21. Qg5 { [%clk 0:08:32.9] } 21... Bb7 { [%clk 0:08:45] } 22. h4 { [%clk 0:07:29.1] } 22... Qe7 { [%clk 0:07:45.7] } 23. Ne4 { [%clk 0:05:46.4] } 23... Qxg5 { [%clk 0:06:00.3] } 24. hxg5 { [%clk 0:04:42.3] } 24... Rac8 { [%clk 0:06:02.2] } 25. Kg2 { [%clk 0:04:38.3] } 25... Bxe4 { [%clk 0:05:47.4] } 26. Rxe4 { [%clk 0:04:45.3] } 26... Rd7 { [%clk 0:05:53.6] } 27. Rd3 { [%clk 0:04:25.1] } 27... Ne7 { [%clk 0:05:43.1] } 28. Re1 { [%clk 0:03:30.6] } 28... Nc6 { [%clk 0:05:46.8] } 29. Nd2 { [%clk 0:03:02.9] } 29... Nb4 { [%clk 0:05:46.6] } 30. Bxb4 { [%clk 0:03:09.9] } 30... axb4 { [%clk 0:05:55.7] } 31. Ne4 { [%clk 0:02:42.9] } 31... Ra8 { [%clk 0:06:01.3] } 32. Re2 { [%clk 0:02:51.5] } 32... Rda7 { [%clk 0:05:52.4] } 33. Rdd2 { [%clk 0:02:51.9] } 33... Ra5 { [%clk 0:05:49.6] } 34. f4 { [%clk 0:02:45.7] } 34... Bc7 { [%clk 0:05:53.8] } 35. Kf3 { [%clk 0:02:48.6] } 35... Kf8 { [%clk 0:05:54.5] } 36. Rh2 { [%clk 0:02:55.4] } 36... Kg8 { [%clk 0:06:02.6] } 37. Rhg2 { [%clk 0:02:25.5] } 37... R8a7 { [%clk 0:04:40.3] } 38. Rh2 { [%clk 0:02:31.1] } 38... Ra8 { [%clk 0:04:36.9] } 39. Rhg2 { [%clk 0:02:36.7] } 39... Rd8 { [%clk 0:04:22] } 40. Rh2 { [%clk 0:02:36.2] } 40... Rda8 { [%clk 0:03:06.7] } 1/2-1/2

[Event "Live Chess"]
[Site "Chess.com"]
[Date "2021.02.28"]
[Round "-"]
[White "Whittaker, Ian P"]
[Black "Harvey, Stephen David"]
[Result "1-0"]
[BlackElo "1511"]
[CurrentPosition "5rk1/pQr2pb1/R4npn/2Pp3p/3Pp3/B1N1P2P/5PP1/1R3NK1 b - -"]
[ECO "A00"]
[ECOUrl "https://www.chess.com/openings/Polish-Opening-1...Nf6-2.Bb2"]
[EndDate "2021.02.28"]
[EndTime "11:55:52"]
[Link "https://www.chess.com/live/game/8250200533"]
[StartTime "11:18:26"]
[Termination "scotsgeek won by resignation"]
[TimeControl "1500+10"]
[Timezone "UTC"]
[UTCDate "2021.02.28"]
[UTCTime "11:18:26"]
[WhiteElo "1713"]

1. b4 { [%clk 0:25:10] } 1... Nf6 { [%clk 0:25:10] } 2. Bb2 { [%clk 0:25:13.6] } 2... d6 { [%clk 0:24:37.6] } 3. e3 { [%clk 0:25:16.9] } 3... e5 { [%clk 0:24:37.6] } 4. c4 { [%clk 0:25:22.5] } 4... g6 { [%clk 0:24:37] } 5. Be2 { [%clk 0:25:16.5] } 5... Bg7 { [%clk 0:24:44.3] } 6. Nf3 { [%clk 0:24:08] } 6... O-O { [%clk 0:24:19.9] } 7. O-O { [%clk 0:23:50.4] } 7... c6 { [%clk 0:23:57.8] } 8. d4 { [%clk 0:22:20.3] } 8... e4 { [%clk 0:23:51.8] } 9. Nfd2 { [%clk 0:22:22.9] } 9... d5 { [%clk 0:23:43.5] } 10. Nc3 { [%clk 0:21:59.6] } 10... Na6 { [%clk 0:22:37.2] } 11. b5 { [%clk 0:19:34.9] } 11... Nc7 { [%clk 0:22:35.6] } 12. a4 { [%clk 0:17:48.5] } 12... Be6 { [%clk 0:22:04.7] } 13. Qc2 { [%clk 0:16:03] } 13... Rc8 { [%clk 0:21:29.8] } 14. c5 { [%clk 0:15:30.5] } 14... Qd7 { [%clk 0:20:29.5] } 15. Rfb1 { [%clk 0:14:34.5] } 15... h5 { [%clk 0:20:27.1] } 16. a5 { [%clk 0:14:12.8] } 16... Nce8 { [%clk 0:20:29.2] } 17. a6 { [%clk 0:13:32.6] } 17... Bg4 { [%clk 0:18:38.5] } 18. Nf1 { [%clk 0:11:45.7] } 18... Bxe2 { [%clk 0:18:43.6] } 19. Qxe2 { [%clk 0:11:37.7] } 19... Ng4 { [%clk 0:17:36.6] } 20. h3 { [%clk 0:10:34.4] } 20... Nh6 { [%clk 0:17:05.5] } 21. axb7 { [%clk 0:07:11.2] } 21... Qxb7 { [%clk 0:17:09.8] } 22. Ra6 { [%clk 0:06:53.1] } 22... cxb5 { [%clk 0:16:46.2] } 23. Qxb5 { [%clk 0:06:30.9] } 23... Rc7 { [%clk 0:16:20.8] } 24. Ba3 { [%clk 0:06:01] } 24... Nf6 { [%clk 0:15:04.5] } 25. Qxb7 { [%clk 0:06:02.4] } 1-0

[Event "Live Chess"]
[Site "Chess.com"]
[Date "2021.02.28"]
[Round "-"]
[White "Campbell, Alistair W I"]
[Black "Rushing, Alexander J"]
[Result "1-0"]
[BlackElo "1543"]
[CurrentPosition "7R/1k2P3/3P1K2/6p1/5p1p/5P1P/4r3/8 b - -"]
[ECO "D06"]
[ECOUrl "https://www.chess.com/openings/Queens-Gambit-Declined-Marshall-Defense-3.Nc3"]
[EndDate "2021.02.28"]
[EndTime "11:56:43"]
[Link "https://www.chess.com/live/game/8249638085"]
[StartTime "11:10:42"]
[Termination "AWICPleaseChange won by resignation"]
[TimeControl "1500+10"]
[Timezone "UTC"]
[UTCDate "2021.02.28"]
[UTCTime "11:10:42"]
[WhiteElo "1605"]

1. d4 { [%clk 0:25:10] } 1... d5 { [%clk 0:25:10] } 2. c4 { [%clk 0:25:17.7] } 2... Nf6 { [%clk 0:25:18.2] } 3. Nc3 { [%clk 0:25:22.7] } 3... c6 { [%clk 0:25:26.6] } 4. Nf3 { [%clk 0:25:08.6] } 4... e6 { [%clk 0:25:30.1] } 5. cxd5 { [%clk 0:25:14.6] } 5... exd5 { [%clk 0:25:36.7] } 6. Bg5 { [%clk 0:25:22.5] } 6... Be7 { [%clk 0:25:37.8] } 7. Qc2 { [%clk 0:25:29.5] } 7... O-O { [%clk 0:24:34.2] } 8. e3 { [%clk 0:25:34.4] } 8... Ne4 { [%clk 0:23:39.5] } 9. Bxe7 { [%clk 0:25:31.5] } 9... Qxe7 { [%clk 0:23:46.4] } 10. Bd3 { [%clk 0:25:15.4] } 10... Nxc3 { [%clk 0:23:50.5] } 11. bxc3 { [%clk 0:24:14.6] } 11... f5 { [%clk 0:23:52.1] } 12. O-O { [%clk 0:24:13.3] } 12... g6 { [%clk 0:23:45.4] } 13. c4 { [%clk 0:24:07.4] } 13... Be6 { [%clk 0:23:40.5] } 14. cxd5 { [%clk 0:23:57.2] } 14... Bxd5 { [%clk 0:23:47.3] } 15. Bc4 { [%clk 0:23:43.3] } 15... Bxc4 { [%clk 0:21:22.1] } 16. Qxc4+ { [%clk 0:23:49.6] } 16... Qf7 { [%clk 0:21:30.7] } 17. Qb4 { [%clk 0:23:08.4] } 17... a5 { [%clk 0:19:50.6] } 18. Qc3 { [%clk 0:22:39.8] } 18... b5 { [%clk 0:19:40.2] } 19. Ne5 { [%clk 0:22:19.7] } 19... Qe6 { [%clk 0:19:32.7] } 20. Rfc1 { [%clk 0:21:53.5] } 20... b4 { [%clk 0:19:35.8] } 21. Qc4 { [%clk 0:21:20] } 21... Qxc4 { [%clk 0:19:30.5] } 22. Rxc4 { [%clk 0:21:26.5] } 22... Rc8 { [%clk 0:19:10] } 23. Rac1 { [%clk 0:20:36.3] } 23... Kg7 { [%clk 0:16:12.1] } 24. Nxc6 { [%clk 0:19:10.7] } 24... Nxc6 { [%clk 0:16:12.9] } 25. Rxc6 { [%clk 0:19:18.1] } 25... Rxc6 { [%clk 0:16:22] } 26. Rxc6 { [%clk 0:19:25.9] } 26... Rb8 { [%clk 0:16:16.4] } 27. Kf1 { [%clk 0:18:13.5] } 27... a4 { [%clk 0:16:15.5] } 28. Ra6 { [%clk 0:17:36.1] } 28... b3 { [%clk 0:16:24.2] } 29. axb3 { [%clk 0:17:44.1] } 29... axb3 { [%clk 0:16:33.2] } 30. Ra1 { [%clk 0:17:52.2] } 30... b2 { [%clk 0:16:42.5] } 31. Rb1 { [%clk 0:18:00.9] } 31... Kf6 { [%clk 0:16:51.2] } 32. Ke2 { [%clk 0:18:09.3] } 32... Ke6 { [%clk 0:17:00.5] } 33. Kd2 { [%clk 0:18:17.8] } 33... h5 { [%clk 0:16:02.5] } 34. Kc2 { [%clk 0:18:23.3] } 34... g5 { [%clk 0:16:08.2] } 35. Rxb2 { [%clk 0:18:31.1] } 35... Rc8+ { [%clk 0:14:45.3] } 36. Kd3 { [%clk 0:18:34.8] } 36... Rc1 { [%clk 0:14:47.9] } 37. f3 { [%clk 0:18:26.1] } 37... Rd1+ { [%clk 0:12:56.6] } 38. Rd2 { [%clk 0:18:28.5] } 38... Ra1 { [%clk 0:13:02.2] } 39. e4 { [%clk 0:18:15.5] } 39... Ra3+ { [%clk 0:12:46.4] } 40. Kc4 { [%clk 0:18:10.4] } 40... f4 { [%clk 0:12:15.7] } 41. d5+ { [%clk 0:18:02.3] } 41... Kd6 { [%clk 0:12:24.2] } 42. Rb2 { [%clk 0:17:10] } 42... Ra6 { [%clk 0:11:39.3] } 43. h3 { [%clk 0:16:28.3] } 43... Ra4+ { [%clk 0:10:54.2] } 44. Rb4 { [%clk 0:15:34.1] } 44... Ra2 { [%clk 0:11:00.3] } 45. Rb6+ { [%clk 0:15:41] } 45... Kc7 { [%clk 0:10:51.5] } 46. Rc6+ { [%clk 0:15:31] } 46... Kd7 { [%clk 0:10:53.4] } 47. Rh6 { [%clk 0:15:30.2] } 47... h4 { [%clk 0:09:55.1] } 48. e5 { [%clk 0:15:22.3] } 48... Rxg2 { [%clk 0:08:55.4] } 49. Rh7+ { [%clk 0:15:27.9] } 49... Kc8 { [%clk 0:08:45.7] } 50. e6 { [%clk 0:15:27.3] } 50... Rc2+ { [%clk 0:08:22.9] } 51. Kd4 { [%clk 0:15:24.6] } 51... Rd2+ { [%clk 0:07:13] } 52. Ke5 { [%clk 0:15:29] } 52... Kd8 { [%clk 0:07:12.3] } 53. d6 { [%clk 0:15:23.9] } 53... Re2+ { [%clk 0:07:19.9] } 54. Kf6 { [%clk 0:15:31] } 54... Kc8 { [%clk 0:07:15] } 55. Rh8+ { [%clk 0:15:31.3] } 55... Kb7 { [%clk 0:07:22.8] } 56. e7 { [%clk 0:15:39.6] } 1-0